bitfinex/quotes_ETHUSD_20250720
["timestamp","ask_amount","ask_price","bid_price","bid_amount"]
[1753011557420,12.9184,3720.5,3720.4,0.19864397]
[1753011557583,14.1484,3720.5,3720.4,0.19864397]
[1753011558423,9.9074,3720.5,3720.4,0.19864397]
[1753011558622,7.38,3720.5,3720.4,0.19864397]
[1753011558931,7.38,3720.5,3720.4,11.20751997]
[1753011559139,8.61,3720.5,3720.4,11.83281897]
[1753011559275,8.61,3720.5,3720.4,10.03932997]
[1753011559895,8.61,3720.5,3720.4,10.31864397]
[1753011560579,9.84,3720.5,3720.4,10.31864397]
[1753011561030,9.84,3720.5,3720.4,12.96928697]
[1753011561928,9.84,3720.5,3720.4,15.14909697]
[1753011562148,11.07,3720.5,3720.4,15.14909697]
[1753011562705,11.07,3720.5,3720.4,14.18172997]
[1753011562906,11.07,3720.5,3720.4,13.48991997]
[1753011563217,11.07,3720.5,3720.4,12.35928697]
[1753011563416,12.3,3720.5,3720.4,12.35928697]
[1753011563745,12.3,3720.5,3720.4,12.49288697]
[1753011564105,12.3,3720.5,3720.4,3.33224397]
[1753011564305,12.3,3720.5,3720.4,29.95374897]
[1753011564953,13.53,3720.5,3720.4,29.95374897]
[1753011565152,13.53,3720.5,3720.4,31.35374897]
[1753011565448,13.53,3720.5,3720.4,27.55374897]
[1753011565640,13.53,3720.5,3720.4,25.35374897]
[1753011565807,13.53,3720.5,3720.4,20.20790497]
[1753011566250,13.53,3720.5,3720.4,14.92700897]
[1753011566457,14.76,3720.5,3720.4,14.92700897]
[1753011566756,14.76,3720.5,3720.4,3.33224397]
[1753011567509,14.76,3720.5,3720.4,16.56930897]
[1753011567710,15.99,3720.5,3720.4,16.58150897]
[1753011567945,15.99,3720.5,3720.4,18.78150897]
[1753011568547,15.99,3720.5,3720.4,16.58150897]
[1753011569355,17.22,3720.5,3720.4,14.65497497]
[1753011569868,17.22,3720.5,3720.4,17.00497497]
[1753011570572,17.22,3720.5,3720.4,26.51032997]
[1753011570774,18.45,3720.5,3720.4,26.51032997]
[1753011570938,18.45,3720.5,3720.4,27.72902697]
[1753011571135,18.45,3720.5,3720.4,25.12902697]
[1753011571365,18.45,3720.5,3720.4,17.04722597]
[1753011571870,18.45,3720.5,3720.4,13.42920397]
[1753011572057,21.9531,3720.5,3720.4,0.19864397]
[1753011573543,23.1831,3720.5,3720.4,0.19864397]
[1753011574480,27.4201,3720.5,3720.4,0.19864397]
[1753011575145,28.6501,3720.5,3720.4,0.19864397]
[1753011576782,29.8801,3720.5,3720.4,0.19864397]
[1753011577960,31.1101,3720.5,3720.4,0.19864397]
[1753011578342,26.8731,3720.5,3720.4,0.19864397]
[1753011578742,31.1091,3720.5,3720.4,0.19864397]
[1753011579699,32.3391,3720.5,3720.4,0.19864397]
[1753011580878,33.9325,3720.5,3720.4,0.19864397]
[1753011581078,35.1625,3720.5,3720.4,0.19864397]
[1753011582581,36.3925,3720.5,3720.4,0.19864397]
[1753011583979,37.6225,3720.5,3720.4,0.19864397]
[1753011584769,35.601,3720.5,3720.4,0.19864397]
[1753011585066,34.1841,3720.5,3720.4,0.19864397]
[1753011585285,35.4141,3720.5,3720.4,0.19864397]
[1753011585466,31.1781,3720.5,3720.4,0.19864397]
[1753011585667,35.4141,3720.5,3720.4,0.19864397]
[1753011586923,31.98,3720.5,3720.4,31.70244397]
[1753011587210,31.98,3720.5,3720.4,34.70244397]
[1753011588404,33.21,3720.5,3720.4,34.70244397]
[1753011589303,33.21,3720.5,3720.4,30.13171797]
[1753011589611,33.21,3720.5,3720.4,7.32766797]
[1753011589797,34.44,3720.5,3720.4,7.32766797]
[1753011590106,34.44,3720.5,3720.4,21.51163397]
[1753011590307,34.44,3720.5,3720.4,18.54791697]
[1753011590503,34.44,3720.5,3720.4,11.94791697]
[1753011590705,37.62706318,3720.5,3720.4,3.19864397]
[1753011590912,41.86106318,3720.5,3720.4,0.19864397]
[1753011591081,43.09106318,3720.5,3720.4,0.19864397]
[1753011592786,44.32106318,3720.5,3720.4,0.19864397]
[1753011594608,45.55106318,3720.5,3720.4,0.19864397]
[1753011594997,38.13,3720.5,3720.4,0.19864397]
[1753011595512,42.4966,3720.5,3720.4,0.19864397]
[1753011595710,44.1547,3720.5,3720.4,0.19864397]
[1753011596415,39.4936,3720.5,3720.4,0.19864397]
[1753011596716,39.4936,3720.5,3720.4,3.19864397]
[1753011597213,40.7236,3720.5,3720.4,18.89673097]
[1753011597372,40.7236,3720.5,3720.4,18.58416297]
[1753011597575,40.7236,3720.5,3720.4,17.15469897]
[1753011597771,40.7236,3720.5,3720.4,15.76718497]
[1753011598719,41.9536,3720.5,3720.4,14.35894997]
[1753011599676,41.9536,3720.5,3720.4,13.26942397]
[1753011599883,41.9536,3720.5,3720.4,13.00083097]
[1753011600214,43.1836,3720.5,3720.4,12.15226597]
[1753011600416,43.1836,3720.5,3720.4,8.46598397]
[1753011600775,43.1836,3720.5,3720.4,6.03417997]
[1753011600974,50.63576318,3720.5,3720.4,3.19864397]
[1753011601381,51.86576318,3720.5,3720.4,3.19864397]
[1753011602289,51.40356318,3720.5,3720.4,3.19864397]
[1753011602500,49.1058,3720.5,3720.4,3.19864397]
[1753011602678,49.8746,3720.5,3720.4,3.19864397]
[1753011603818,45.6436,3720.5,3720.4,3.19864397]
[1753011603987,51.1046,3720.5,3720.4,3.19864397]
[1753011605529,48.1036,3720.5,3720.4,3.19864397]
[1753011607031,49.3336,3720.5,3720.4,3.19864397]
[1753011608050,49.2,3720.5,3720.4,31.27714828]
[1753011608211,49.2,3720.5,3720.4,27.68681828]
[1753011608407,50.43,3720.5,3720.4,27.68681828]
[1753011608809,50.43,3720.5,3720.4,13.44710497]
[1753011609050,50.43,3720.5,3720.4,10.05850497]
[1753011609930,51.66,3720.5,3720.4,3.33224397]
[1753011610556,51.66,3720.5,3720.4,10.59041497]
[1753011610762,51.66,3720.5,3720.4,6.19041497]
[1753011611059,51.66,3720.5,3720.4,3.33224397]
[1753011611251,52.89,3720.5,3720.4,6.19041497]
[1753011612162,52.89,3720.5,3720.4,0.33224397]
[1753011612366,53.3512,3720.5,3720.4,0.19864397]
[1753011612564,57.34016318,3720.5,3720.4,0.19864397]
[1753011613982,58.57016318,3720.5,3720.4,0.19864397]
[1753011614688,64.34046318,3720.5,3720.4,0.19864397]
[1753011614902,2.75896318,3720.4,3720.1,0.001]
[1753011615099,1.5413,3720.2,3719.7,0.001]
[1753011615391,1.5413,3720.2,3719.4,0.001]
[1753011615392,1.5413,3720.0,3719.4,0.001]
[1753011615542,4.228,3719.9,3719.4,0.001]
[1753011615744,1.5413,3719.8,3719.4,0.001]
[1753011615988,4.42825,3719.7,3719.4,0.001]
[1753011616186,6.43075,3719.7,3719.6,0.2032565]
[1753011616362,2.20275,3719.7,3719.6,0.001]
[1753011616684,6.43075,3719.7,3719.6,0.001]
[1753011616986,8.21075,3719.7,3719.6,0.001]
[1753011617759,3.98275,3719.7,3719.6,0.001]
[1753011618049,7.66175,3719.7,3719.6,0.001]
[1753011618249,8.89175,3719.7,3719.6,0.001]
[1753011618458,8.89175,3719.7,3718.9,0.001]
[1753011618689,1.350375,3719.6,3718.9,0.001]
[1753011618996,4.228,3719.5,3718.9,0.001]
[1753011619194,0.889175,3719.6,3718.9,0.001]
[1753011619397,4.6892,3719.5,3718.9,0.001]
[1753011619599,4.228,3719.4,3718.9,0.001]
[1753011619799,4.228,3719.4,3718.6,0.12983484]
[1753011620008,4.228,3719.4,3718.7,5.561934]
[1753011620361,4.228,3719.3,3718.8,3.0]
[1753011620574,4.228,3719.3,3718.6,0.29509656]
[1753011620777,0.4612,3719.3,3718.8,3.0]
[1753011620992,4.6892,3719.2,3718.6,0.29509656]
[1753011621296,4.6892,3719.2,3718.6,0.43488835]
[1753011621499,4.6892,3719.2,3718.6,0.42121835]
[1753011621662,4.6892,3719.2,3718.7,5.41015]
[1753011621862,0.4612,3719.1,3718.7,3.0]
[1753011622210,1.23,3719.3,3718.9,3.0]
[1753011622410,1.23,3719.1,3719.0,15.364936]
[1753011622556,1.23,3719.1,3719.0,20.86816831]
[1753011622753,1.23,3719.1,3719.0,18.90384531]
[1753011623209,1.23,3719.1,3719.0,17.77298731]
[1753011623590,1.23,3719.1,3719.0,3.0]
[1753011623881,2.46,3719.1,3719.0,3.0]
[1753011624210,2.46,3719.1,3719.0,14.62239762]
[1753011624503,2.46,3719.1,3719.0,23.43517171]
[1753011624701,2.46,3719.1,3719.0,25.68048671]
[1753011625105,3.69,3719.1,3719.0,25.68048671]
[1753011625311,3.69,3719.1,3719.0,11.1484044]
[1753011625611,3.69,3719.1,3719.0,9.284794]
[1753011626195,3.69,3719.1,3719.0,7.768294]
[1753011626709,4.92,3719.1,3719.0,3.0]
[1753011627014,10.647,3719.1,3719.0,3.0]
[1753011627888,9.6092,3719.1,3719.0,3.0]
[1753011628070,10.8392,3719.1,3719.0,3.0]
[1753011629618,12.0692,3719.1,3719.0,3.0]
[1753011630208,7.8412,3719.1,3719.0,3.0]
[1753011630374,12.0692,3719.1,3719.0,3.0]
[1753011631112,13.2992,3719.1,3719.0,3.0]
[1753011631270,14.9183,3719.1,3719.0,3.0]
[1753011632903,16.1483,3719.1,3719.0,3.0]
[1753011634421,17.3783,3719.1,3719.0,3.0]
[1753011634921,17.3783,3719.1,3718.7,0.20308196]
[1753011635120,17.3783,3719.1,3718.4,0.001]
[1753011635121,2.0937,3719.0,3718.4,0.001]
[1753011635322,4.228,3718.9,3718.4,0.001]
[1753011635492,4.6647,3718.9,3718.4,0.001]
[1753011635692,5.458,3718.9,3718.4,0.001]
[1753011635893,0.4367,3718.8,3718.4,0.001]
[1753011636222,5.169253,3718.7,3718.4,0.001]
[1753011637123,0.4367,3718.6,3718.4,0.001]
[1753011637326,4.228,3718.5,3718.4,0.001]
[1753011637527,4.6647,3718.5,3718.4,0.001]
[1753011638517,5.8947,3718.5,3718.4,0.001]
[1753011638721,5.8947,3718.5,3718.4,0.20583019]
[1753011638920,5.8947,3718.5,3718.4,0.3406495]
[1753011639618,6.32944458,3718.5,3718.4,0.3406495]
[1753011639818,7.55944458,3718.5,3718.4,0.3406495]
[1753011640597,8.62454458,3718.5,3718.4,0.3406495]
[1753011640798,9.06124458,3718.5,3718.4,0.20583019]
[1753011641304,3.69,3718.5,3718.4,0.3431512]
[1753011641507,3.69,3718.5,3718.4,0.001]
[1753011642630,4.92,3718.5,3718.4,0.001]
[1753011642830,4.92,3718.5,3718.4,14.89176496]
[1753011643028,2.39931034,3718.5,3718.4,38.93035969]
[1753011643690,2.39931034,3718.5,3718.4,8.93035969]
[1753011643897,2.39931034,3718.5,3718.4,38.93035969]
[1753011644106,3.62931034,3718.5,3718.4,38.46335969]
[1753011644305,1.23,3718.7,3718.4,38.46335969]
[1753011644306,1.23,3718.7,3718.6,2.6891841]
[1753011644508,1.00440154,3719.7,3719.5,2.6885334]
[1753011644766,1e-08,3719.7,3719.6,20.71864704]
[1753011644918,1e-08,3719.7,3719.6,22.27657573]
[1753011645119,1e-08,3719.7,3719.6,21.80957573]
[1753011645309,1e-08,3719.7,3719.6,22.27657573]
[1753011645509,1.23000001,3719.7,3719.6,22.27657573]
[1753011645711,1.23000001,3719.7,3719.6,20.47340873]
[1753011645907,1.23000001,3719.7,3719.6,20.52712873]
[1753011646111,1.23000001,3719.7,3719.6,18.78651373]
[1753011646534,1.23000001,3719.7,3719.6,16.99584873]
[1753011646845,1.23000001,3719.7,3719.6,18.95246473]
[1753011647030,2.46000001,3719.7,3719.6,17.84168373]
[1753011647250,2.46000001,3719.7,3719.6,17.37468373]
[1753011647412,2.46000001,3719.7,3719.6,17.84168373]
[1753011647910,2.46000001,3719.7,3719.6,30.29591173]
[1753011648309,2.46000001,3719.7,3719.6,25.42048873]
[1753011648538,3.69000001,3719.7,3719.6,22.11539673]
[1753011649039,3.69000001,3719.7,3719.6,25.19917273]
[1753011649243,3.69000001,3719.7,3719.6,21.84348473]
[1753011649639,3.69000001,3719.7,3719.6,18.83723573]
[1753011649842,4.92000001,3719.7,3719.6,16.59023573]
[1753011650046,4.92000001,3719.7,3719.6,21.86951773]
[1753011650246,4.92000001,3719.7,3719.6,15.79997873]
[1753011650413,4.92000001,3719.7,3719.6,14.978366]
[1753011650608,4.92000001,3719.7,3719.6,13.90121]
[1753011650809,4.92000001,3719.7,3719.6,14.973009]
[1753011651140,4.92000001,3719.7,3719.6,3.0]
[1753011651344,7.07870001,3719.7,3719.6,11.041684]
[1753011651545,6.58670001,3719.7,3719.6,7.681684]
[1753011651750,6.15000001,3719.7,3719.6,5.743499]
[1753011652346,6.15000001,3719.7,3719.6,5.298002]
[1753011652542,6.15000001,3719.7,3719.3,9.48624]
[1753011652748,7.38000001,3719.7,3719.4,3.0]
[1753011652949,7.38000001,3719.7,3719.2,1.5453]
[1753011653109,7.38000001,3719.7,3719.3,5.379665]
[1753011653314,7.38000001,3719.7,3719.5,3.0]
[1753011653634,7.38000001,3719.7,3719.6,25.370289]
[1753011653832,7.38000001,3719.7,3719.6,26.358975]
[1753011654034,8.61000001,3719.7,3719.6,26.358975]
[1753011654415,8.61000001,3719.7,3719.6,23.277361]
[1753011654764,8.61000001,3719.7,3719.6,23.008715]
[1753011654909,8.61000001,3719.7,3719.6,8.235381]
[1753011655109,9.04670001,3719.7,3719.6,8.235381]
[1753011655311,9.04670001,3719.7,3719.2,1.5453]
[1753011655534,10.41110001,3719.7,3719.3,5.26188]
[1753011655848,10.41110001,3719.7,3719.4,7.267096]
[1753011656051,10.41110001,3719.7,3719.5,8.630723]
[1753011656258,10.41110001,3719.7,3719.6,5.968731]
[1753011656435,10.41110001,3719.7,3719.6,7.982138]
[1753011656638,10.41110001,3719.7,3719.6,7.694637]
[1753011656825,11.64110001,3719.7,3719.6,7.694637]
[1753011657155,11.20440001,3719.7,3719.6,7.694637]
[1753011657556,11.07000001,3719.7,3719.6,5.39048131]
[1753011657767,11.07000001,3719.7,3719.6,36.18783095]
[1753011658131,12.30000001,3719.7,3719.6,36.18783095]
[1753011658324,12.28629231,3719.7,3719.6,36.18783095]
[1753011658522,12.28629231,3719.7,3719.6,25.03502995]
[1753011658745,12.28629231,3719.7,3719.6,22.26934995]
[1753011659027,12.28629231,3719.7,3719.6,17.34437273]
[1753011659457,12.28629231,3719.7,3719.6,5.43649073]
[1753011659659,13.51629231,3719.7,3719.6,5.43649073]
[1753011660561,13.51629231,3719.7,3719.6,30.35380473]
[1753011660759,13.51629231,3719.7,3719.6,11.794314]
[1753011661056,14.74629231,3719.7,3719.6,7.074794]
[1753011661362,14.74629231,3719.7,3719.6,3.1344]
[1753011661560,14.74629231,3719.7,3719.6,2.436999]
[1753011661561,15.9173055,3719.7,3719.6,2.436999]
[1753011661785,1.6192,3719.6,3718.9,1.5872]
[1753011661940,1.6192,3719.6,3719.0,17.898952]
[1753011662143,0.1344,3719.4,3719.0,6.393952]
[1753011662342,0.4705,3719.3,3718.9,5.295947]
[1753011662537,4.225,3719.5,3719.0,4.491696]
[1753011662753,0.1344,3719.1,3718.9,5.217699]
[1753011662944,0.1344,3719.1,3718.9,11.684434]
[1753011663361,0.1344,3719.1,3719.0,3.0]
[1753011663583,0.1344,3719.1,3719.0,16.900584]
[1753011663875,1.3644,3719.1,3718.8,0.001]
[1753011664046,1.3644,3719.1,3719.0,3.0]
[1753011664246,1.3644,3719.1,3719.0,6.143738]
[1753011664446,2.44089,3719.1,3718.8,0.001]
[1753011664682,0.4705,3719.0,3718.8,0.001]
[1753011665046,1.7005,3719.0,3718.8,0.001]
[1753011666257,0.4705,3718.9,3718.8,0.001]
[1753011666578,2.017,3718.9,3718.8,0.001]
[1753011666784,3.0102,3718.9,3718.8,0.001]
[1753011666980,7.2352,3718.9,3718.8,0.001]
[1753011667857,8.4652,3718.9,3718.8,0.001]
[1753011669280,9.6952,3718.9,3718.8,0.001]
[1753011670697,10.9252,3718.9,3718.8,0.001]
[1753011672002,12.1552,3718.9,3718.8,0.001]
[1753011673515,13.3852,3718.9,3718.8,0.001]
[1753011673718,10.8455,3718.9,3718.8,0.001]
[1753011674010,6.15,3718.9,3718.8,0.001]
[1753011674211,10.8455,3718.9,3718.8,0.001]
[1753011674916,12.0755,3718.9,3718.8,0.001]
[1753011675779,13.5937,3718.9,3718.8,0.001]
[1753011676127,15.32207,3718.9,3718.8,0.001]
[1753011676416,12.835,3718.9,3718.8,0.001]
[1753011676774,13.3055,3718.9,3718.8,0.001]
[1753011677217,9.0805,3718.9,3718.8,0.001]
[1753011677511,8.61,3718.9,3718.8,0.001]
[1753011677718,14.065,3718.9,3718.8,0.001]
[1753011678574,15.30335416,3718.9,3718.8,0.001]
[1753011678918,15.77385416,3718.9,3718.8,0.001]
[1753011679095,17.00385416,3718.9,3718.8,0.001]
[1753011679297,12.77885416,3718.9,3718.8,0.001]
[1753011679495,17.00385416,3718.9,3718.8,0.001]
[1753011679829,11.07,3718.9,3718.8,6.841418]
[1753011679995,11.07,3718.9,3718.8,15.59062173]
[1753011680184,11.07,3718.9,3718.8,15.27019973]
[1753011680385,12.3,3718.9,3718.8,10.11844773]
[1753011680926,12.3,3718.9,3718.8,13.31516773]
[1753011681804,13.53,3718.9,3718.8,17.47027873]
[1753011682102,13.53,3718.9,3718.8,17.17027873]
[1753011682717,13.53,3718.9,3718.8,16.73127873]
[1753011682919,13.53,3718.9,3718.8,11.82258673]
[1753011683117,14.76,3718.9,3718.8,12.26158673]
[1753011683825,14.76,3718.9,3718.8,5.28169073]
[1753011684283,15.99,3718.9,3718.8,5.28169073]
[1753011684480,15.99,3718.9,3718.8,19.69900373]
[1753011684685,15.99,3718.9,3718.8,8.89891151]
[1753011684986,15.99,3718.9,3718.8,39.40647042]
[1753011685185,13.30389968,3718.9,3718.8,40.736249]
[1753011685495,7.31672683,3718.9,3718.8,40.736249]
[1753011685724,1.01019433,3719.0,3718.9,6.23896716]
[1753011685943,1.01019433,3719.0,3718.9,40.21510901]
[1753011686105,1.01019433,3719.0,3718.9,40.65410901]
[1753011686306,1.01019433,3719.0,3718.9,39.28439811]
[1753011686537,1.01019433,3719.0,3718.9,40.65410901]
[1753011687498,14.74829231,3719.7,3719.5,1.5653]
[1753011687829,14.74829231,3719.7,3719.5,23.106802]
[1753011688134,14.74829231,3719.7,3719.5,5.1359]
[1753011688734,2.46,3719.6,3719.5,22.01868]
[1753011688909,2.46,3719.6,3719.5,5.1359]
[1753011690014,3.69,3719.6,3719.5,16.963957]
[1753011690195,3.69,3719.6,3719.5,16.21054411]
[1753011690630,3.69,3719.6,3719.5,9.84792911]
[1753011690836,3.69,3719.6,3719.5,8.287513]
[1753011691232,3.69,3719.6,3719.5,3.1344]
[1753011691545,4.92,3719.6,3719.5,3.1344]
[1753011692453,6.32549927,3719.6,3719.5,3.0]
[1753011692615,6.32549927,3719.6,3719.5,5.130135]
[1753011692814,6.5912,3719.6,3719.5,3.0]
[1753011693398,6.5912,3719.6,3719.5,6.668038]
[1753011693618,6.15,3719.6,3719.5,6.668038]
[1753011693914,6.15,3719.6,3719.2,0.1344]
[1753011693915,1.7779,3719.5,3718.9,0.42419073]
[1753011694111,0.1344,3719.5,3719.1,3.0]
[1753011694463,0.1344,3719.5,3719.3,3.0]
[1753011694623,0.1344,3719.5,3719.2,3.0]
[1753011694969,7.38,3719.6,3719.5,21.401757]
[1753011695115,7.38,3719.6,3719.5,33.0]
[1753011695315,7.38,3719.6,3719.5,33.4362]
[1753011695563,8.61,3719.6,3719.5,33.4362]
[1753011696258,8.61,3719.6,3719.5,33.72599073]
[1753011696627,1.89252199,3719.6,3719.5,39.31376435]
[1753011696833,3.12252199,3719.6,3719.5,40.69381723]
[1753011697160,3.12252199,3719.6,3719.5,10.69381723]
[1753011697388,14.74829231,3719.7,3719.5,40.32065832]
[1753011697511,7.31890615,3719.7,3719.6,38.94053316]
[1753011697910,7.31890615,3719.7,3719.6,8.94053316]
[1753011698209,1.23,3720.4,3720.3,6.23795527]
[1753011698409,1.23,3720.4,3720.3,38.94002731]
[1753011699762,2.46,3720.4,3720.3,38.94002731]
[1753011701051,3.69,3720.4,3720.3,38.94002731]
[1753011701422,3.69,3720.4,3720.3,39.14430056]
[1753011702532,4.92,3720.4,3720.3,39.14430056]
[1753011702712,4.92,3720.4,3720.3,33.18798925]
[1753011702947,28.25445575,3720.5,3720.4,6.23788302]
[1753011703145,10.8849418,3720.5,3720.4,38.86866397]
[1753011703331,1.22263933,3720.5,3720.4,39.30486397]
[1753011703531,19.65374167,3721.2,3720.8,7.83549406]
[1753011703736,19.65374167,3721.2,3720.8,9.018053]
[1753011703937,19.65374167,3721.2,3720.8,12.568053]
[1753011704430,19.65374167,3721.2,3720.8,5.1479]
[1753011704833,19.65374167,3721.2,3720.8,37.83549406]
[1753011705441,1.232,3720.9,3720.8,38.10445146]
[1753011705636,0.002,3721.9,3721.7,2.68408028]
[1753011705868,2.29749112,3722.0,3721.8,0.55]
[1753011706164,1.66905234,3723.0,3722.2,0.55]
[1753011706370,1.66905234,3723.0,3722.4,3.6091]
[1753011706574,1.66905234,3723.0,3722.6,3.0]
[1753011706866,1.66905234,3723.0,3722.5,30.0]
[1753011706867,1.66905234,3723.0,3722.8,3.0]
[1753011707033,1.66905234,3723.0,3722.9,27.600049]
[1753011707358,1.66905234,3723.0,3722.9,34.13662366]
[1753011707581,1.53487459,3723.0,3722.9,34.47646852]
[1753011707743,1.53487459,3723.0,3722.9,35.69923709]
[1753011707948,1.40069684,3723.0,3722.9,35.69923709]
[1753011708383,1.26651909,3723.0,3722.9,35.69923709]
[1753011708748,1.13234134,3723.0,3722.9,35.69923709]
[1753011708948,1.13234134,3723.0,3722.9,35.56563709]
[1753011709168,0.99816359,3723.0,3722.9,35.56563709]
[1753011709548,0.86398584,3723.0,3722.9,35.56563709]
[1753011709878,0.86398584,3723.0,3722.9,12.10028986]
[1753011710051,0.86398584,3723.0,3722.9,12.65028986]
[1753011710252,0.72993292,3723.0,3722.9,13.10331352]
[1753011710451,0.72993292,3723.0,3722.9,32.11316852]
[1753011710646,0.72993292,3723.0,3722.9,35.11316852]
[1753011710873,1.95993292,3723.0,3722.9,35.11316852]
[1753011711393,1.95993292,3723.0,3722.9,15.30511186]
[1753011711701,4.53577384,3723.0,3722.9,4.852911]
[1753011711879,4.53577384,3723.0,3722.5,0.33984486]
[1753011712082,1.95993292,3723.0,3722.6,10.866212]
[1753011712390,1.95993292,3723.0,3722.7,1.34286852]
[1753011712600,3.18993292,3723.0,3722.9,0.55]
[1753011712903,3.18993292,3723.0,3722.9,33.88984486]
[1753011713803,4.41993292,3723.0,3722.9,33.88984486]
[1753011714100,4.41993292,3723.0,3722.9,28.78704486]
[1753011714412,4.41993292,3723.0,3722.9,22.21666786]
[1753011714702,4.41993292,3723.0,3722.9,20.1121]
[1753011714703,4.86113292,3723.0,3722.9,20.1121]
[1753011715208,7.28589384,3723.0,3722.9,3.805444]
[1753011715380,6.09113292,3723.0,3722.6,26.314179]
[1753011715578,0.4412,3722.9,3722.6,11.322936]
[1753011715776,1.9554,3722.9,3722.7,3.945294]
[1753011716014,1.9554,3722.9,3722.3,12.534863]
[1753011716015,0.4412,3722.8,3722.3,12.534863]
[1753011716212,2.37263329,3722.8,3721.9,0.31809486]
[1753011716395,1.5142,3722.6,3722.0,7.182497]
[1753011716703,4.7702,3722.5,3721.7,12.413301]
[1753011716873,0.4412,3722.4,3721.5,23.189433]
[1753011717205,4.7742,3722.4,3721.6,3.0]
[1753011717401,0.4412,3722.4,3721.7,29.33262]
[1753011717582,0.4412,3722.4,3721.8,3.77111852]
[1753011717788,0.4412,3722.4,3722.0,3.0]
[1753011717973,0.4412,3722.4,3722.2,3.0]
[1753011718173,7.0762,3722.6,3722.4,3.0]
[1753011718374,8.09996333,3722.6,3721.8,0.96896921]
[1753011718570,3.76796333,3722.6,3722.0,3.0]
[1753011718908,0.4567,3722.5,3722.2,3.1336]
[1753011719107,7.0732,3722.6,3722.4,3.0]
[1753011719312,2.7442,3722.6,3722.2,0.1336]
[1753011719610,3.9742,3722.6,3722.5,3.0]
[1753011719907,3.9742,3722.6,3722.5,11.547982]
[1753011720311,4.4309,3722.6,3722.5,11.547982]
[1753011720492,4.4309,3722.6,3722.5,9.405595]
[1753011720695,5.62273333,3722.6,3722.5,3.0]
[1753011720895,6.85273333,3722.6,3722.5,3.0]
[1753011721092,11.17873333,3722.6,3722.5,3.0]
[1753011721340,11.17873333,3722.6,3722.5,2.525]
[1753011722294,12.40873333,3722.6,3722.5,2.525]
[1753011723821,13.63873333,3722.6,3722.5,2.525]
[1753011724597,9.31273333,3722.6,3722.5,2.525]
[1753011724829,13.63273333,3722.6,3722.5,2.525]
[1753011725037,13.63273333,3722.6,3722.5,1.53867187]
[1753011725239,14.86273333,3722.6,3722.5,1.53867187]
[1753011725951,14.86273333,3722.6,3721.8,0.19785069]
[1753011725952,13.34853333,3722.6,3721.8,0.19785069]
[1753011726100,1.5892,3722.4,3721.3,0.77111852]
[1753011726434,1.99805666,3722.5,3721.3,0.77111852]
[1753011726435,1.5892,3721.5,3721.3,0.77111852]
[1753011726639,0.4567,3721.4,3721.3,0.77111852]
[1753011727947,0.4567,3721.4,3721.3,7.36379452]
[1753011728247,1.6867,3721.4,3721.3,7.56149021]
[1753011728749,1.6867,3721.4,3721.3,9.65115878]
[1753011728750,1.23,3721.4,3721.3,9.65115878]
[1753011728950,1.23,3721.4,3721.3,6.05848278]
[1753011729322,1.23,3721.4,3721.3,4.42128278]
[1753011729518,2.46,3721.4,3721.3,25.73147178]
[1753011729723,2.46,3721.4,3721.3,27.63829678]
[1753011729925,2.46,3721.4,3721.3,25.26622878]
[1753011730572,1.23,3722.4,3721.4,3.0]
[1753011730769,1.23,3722.4,3721.7,3.0]
[1753011730954,2.46,3722.4,3721.9,3.0]
[1753011731162,2.46,3722.4,3722.1,3.0]
[1753011731339,2.46,3722.4,3722.3,3.0]
[1753011731666,2.46,3722.4,3722.3,33.31809486]
[1753011732234,2.46,3722.4,3722.3,33.77111852]
[1753011732430,3.69,3722.4,3722.3,33.77111852]
[1753011733868,3.69,3722.4,3722.3,3.77111852]
[1753011734059,4.92,3722.4,3722.3,4.22358709]
[1753011734259,4.92,3722.4,3722.3,32.19659652]
[1753011734568,4.92,3722.4,3722.3,31.00231486]
[1753011735071,4.92,3722.4,3722.3,33.31809486]
[1753011735438,6.15,3722.4,3722.3,33.31809486]
[1753011736189,6.15,3722.4,3722.3,26.60681986]
[1753011736858,7.38,3722.4,3722.3,26.60681986]
[1753011737168,7.38,3722.4,3722.3,28.42180786]
[1753011737364,7.38,3722.4,3722.3,19.82331186]
[1753011737569,7.8367,3722.4,3722.3,11.68478686]
[1753011737750,7.8367,3722.4,3722.3,8.51712886]
[1753011738068,8.61,3722.4,3722.3,29.73935009]
[1753011738276,8.61,3722.4,3722.3,30.70633309]
[1753011738474,8.61,3722.4,3722.3,29.50671909]
[1753011738632,8.61,3722.4,3722.3,28.69953952]
[1753011738836,8.61,3722.4,3722.3,28.83313952]
[1753011739037,8.61,3722.4,3722.3,31.40310486]
[1753011739247,8.61,3722.4,3722.3,27.51029386]
[1753011739445,8.61,3722.4,3722.3,25.22870386]
[1753011739671,9.84,3722.4,3722.3,28.24209609]
[1753011740172,9.84,3722.4,3722.3,36.46508709]
[1753011740883,11.07,3722.4,3722.3,36.46508709]
[1753011742071,11.05860363,3722.4,3722.3,9.70159811]
[1753011742278,12.28860363,3722.4,3722.3,9.70159811]
[1753011742439,12.28860363,3722.4,3722.3,39.70159811]
[1753011743050,12.15447663,3722.4,3722.3,9.56799811]
[1753011743360,12.15447663,3722.4,3722.3,11.17899811]
[1753011743361,4.24696604,3722.4,3722.3,11.17899811]
[1753011743553,0.7797444,3722.6,3722.5,4.78706668]
[1753011743761,3.49963407,3723.0,3722.9,7.78677805]
[1753011743956,2.83054547,3723.1,3723.0,5.6860059]
[1753011744170,2.69641847,3723.1,3723.0,40.84848593]
[1753011744370,6.65402133,3723.3,3723.2,7.78656162]
[1753011744680,6.65402133,3723.3,3723.2,40.34321111]
[1753011744681,6.51989433,3723.3,3723.2,40.34321111]
[1753011744878,6.51989433,3723.3,3723.2,40.80411111]